fUSD/lending_fUSD_20250522
["ID","MTS","AMOUNT","RATE_DAILY","PERIOD"]
[361972890,1747915834793,-420.0,0.00032876,5]
[361972892,1747915834804,-1064.62,0.00032876,5]
[361972895,1747915834814,-420.0,0.00032876,5]
[361972897,1747915834823,-420.0,0.00032876,5]
[361972899,1747915834833,-420.0,0.00032876,5]
[361972900,1747915834843,-665.33,0.00032876,5]
[361972902,1747915834852,-618.19,0.00032876,5]
[361972904,1747915834862,-420.0,0.00032876,5]
[361972907,1747915834871,-968.77,0.00032876,5]
[361972909,1747915834882,-711.72,0.00032876,5]
[361972911,1747915834891,-485.74,0.00032876,5]
[361972913,1747915834900,-420.0,0.00032876,5]
[361972915,1747915834912,-420.0,0.00032876,5]
[361972916,1747915834921,-420.0,0.00032876,5]
[361972918,1747915834931,-313.78275448,0.00032876,5]
[361972920,1747915834941,-420.0,0.00032876,5]
[361972922,1747915834950,-1291.35,0.00032876,5]
[361972924,1747915834959,-420.0,0.00032876,5]
[361972926,1747915834968,-461.17,0.00032876,5]
[361972928,1747915834978,-274.03268387,0.00032876,5]
[361972930,1747915834987,-1096.83,0.00032876,5]
[361972932,1747915834996,-1011.0,0.00032876,5]
[361972934,1747915835006,-420.0,0.00032876,5]
[361972936,1747915835015,-893.59,0.00032876,5]
[361972938,1747915835027,-420.0,0.00032876,5]
[361972940,1747915835036,-420.0,0.00032876,5]
[361972942,1747915835046,-864.04,0.00032876,5]
[361972944,1747915835055,-420.0,0.00032876,5]
[361972946,1747915835065,-420.0,0.00032876,5]
[361972948,1747915835074,-420.0,0.00032876,5]
[361972949,1747915835083,-1128.47,0.00032876,5]
[361972950,1747915835093,-517.29,0.00032876,5]
[361972951,1747915835102,-796.98,0.00032876,5]
[361972953,1747915835201,-420.0,0.00032876,5]
[361972955,1747915835211,-420.0,0.00032876,5]
[361972957,1747915835220,-420.0,0.00032876,5]
[361972960,1747915835230,-253.89623122,0.00032876,5]
[361972962,1747915835240,-420.0,0.00032876,5]
[361972963,1747915835249,-420.0,0.00032876,5]
[361972965,1747915835258,-457.01,0.00032876,5]
[361972968,1747915835272,-420.0,0.00032876,5]
[361972970,1747915835283,-420.0,0.00032876,5]
[361972972,1747915835292,-420.0,0.00032876,5]
[361972974,1747915835301,-527.54,0.00032876,5]
[361972976,1747915835309,-966.8,0.00032876,5]
[361972978,1747915835319,-420.0,0.00032876,5]
[361972980,1747915835328,-1166.25,0.00032876,5]
[361972982,1747915835337,-435.12,0.00032876,5]
[361972984,1747915835346,-420.0,0.00032876,5]
[361972986,1747915835355,-2257.93,0.00032876,5]
[361972987,1747915835364,-420.0,0.00032876,5]
[361972989,1747915835373,-460.31,0.00032876,5]
[361972991,1747915835383,-592.08,0.00032876,5]
[361972993,1747915835392,-1605.89,0.00032876,5]
[361972995,1747915835401,-686.25,0.00032876,5]
[361972998,1747915835414,-420.0,0.00032876,5]
[361972999,1747915835423,-420.0,0.00032876,5]
[361973001,1747915835433,-667.05,0.00032876,5]
[361973003,1747915835443,-451.8,0.00032876,5]
[361973005,1747915835452,-420.0,0.00032876,5]
[361973007,1747915835461,-420.0,0.00032876,5]
[361973009,1747915835470,-567.83,0.00032876,5]
[361973011,1747915835479,-1154.88,0.00032876,5]
[361973013,1747915835488,-420.0,0.00032876,5]
[361973015,1747915835497,-568.42,0.00032876,5]
[361973017,1747915835507,-420.0,0.00032876,5]
[361973019,1747915835516,-420.0,0.00032876,5]
[361973021,1747915835525,-831.36,0.00032876,5]
[361973023,1747915835535,-651.1,0.00032876,5]
[361973025,1747915835545,-420.0,0.00032876,5]
[361973027,1747915835554,-420.0,0.00032876,5]
[361973029,1747915835563,-343.23454157,0.00032876,5]
[361973031,1747915835573,-878.43,0.00032876,5]
[361973033,1747915835582,-850.48,0.00032876,5]
[361973035,1747915835591,-420.0,0.00032876,5]
[361973037,1747915835600,-1114.61,0.00032876,5]
[361973039,1747915835609,-420.0,0.00032876,5]
[361973041,1747915835618,-497.06,0.00032876,5]
[361973043,1747915835627,-692.48,0.00032876,5]
[361973045,1747915835636,-420.0,0.00032876,5]
[361973047,1747915835645,-420.0,0.00032876,5]
[361973048,1747915835654,-612.49,0.00032876,5]
[361973050,1747915835663,-420.0,0.00032876,5]
[361973052,1747915835674,-809.74,0.00032876,5]
[361973054,1747915835683,-770.45,0.00032876,5]
[361973056,1747915835693,-420.0,0.00032876,5]
[361973058,1747915835704,-487.65,0.00032876,5]
[361973060,1747915835716,-462.57,0.00032876,5]
[361973062,1747915835725,-420.0,0.00032876,5]
[361973064,1747915835734,-420.0,0.00032876,5]
[361973066,1747915835744,-809.55,0.00032876,5]
[361973068,1747915835753,-605.62,0.00032876,5]
[361973070,1747915835762,-927.56,0.00032876,5]
[361973072,1747915835771,-1199.17,0.00032876,5]
[361973074,1747915835780,-422.66,0.00032876,5]
[361973076,1747915835791,-420.0,0.00032876,5]
[361973078,1747915835800,-937.96,0.00032876,5]
[361973080,1747915835809,-420.0,0.00032876,5]
[361973082,1747915835818,-420.0,0.00032876,5]
[361973083,1747915835828,-420.0,0.00032876,5]
[361973085,1747915835837,-420.0,0.00032876,5]
[361973087,1747915835847,-420.0,0.00032876,5]
[361973089,1747915835856,-620.01,0.00032876,5]
[361973091,1747915835865,-420.0,0.00032876,5]
[361973093,1747915835875,-848.16,0.00032876,5]
[361973095,1747915835884,-914.01,0.00032876,5]
[361973097,1747915835893,-584.56,0.00032876,5]
[361973099,1747915835903,-1030.97,0.00032876,5]
[361973102,1747915835921,-420.0,0.00032876,5]
[361973104,1747915835933,-1014.39,0.00032876,5]
[361973106,1747915835942,-420.0,0.00032876,2]
[361973108,1747915835952,-420.0,0.00032876,5]
[361973110,1747915835961,-649.63,0.00032876,5]
[361973112,1747915835971,-420.0,0.00032876,5]
[361973114,1747915835980,-420.0,0.00032876,5]
[361973116,1747915835993,-443.65,0.00032876,5]
[361973118,1747915836002,-423.64378942,0.00032876,5]
[361973120,1747915836012,-420.0,0.00032876,5]
[361973122,1747915836021,-420.0,0.00032876,5]
[361973124,1747915836032,-420.0,0.00032876,5]
[361973126,1747915836042,-523.12,0.00032876,5]
[361973128,1747915836051,-828.84,0.00032876,5]
[361973130,1747915836061,-420.0,0.00032876,5]
[361973132,1747915836071,-420.0,0.00032876,5]
[361973134,1747915836081,-420.0,0.00032876,5]
[361973136,1747915836090,-595.31,0.00032876,5]
[361973138,1747915836100,-420.0,0.00032876,5]
[361973140,1747915836110,-420.0,0.00032876,5]
[361973142,1747915836120,-420.0,0.00032876,5]
[361973144,1747915836130,-1038.51,0.00032876,5]
[361973146,1747915836139,-420.0,0.00032876,5]
[361973148,1747915836150,-715.67,0.00032876,5]
[361973150,1747915836160,-420.0,0.00032876,5]
[361973152,1747915836170,-1477.9,0.00032876,5]
[361973154,1747915836185,-420.0,0.00032876,5]
[361973156,1747915836195,-420.0,0.00032876,5]
[361973158,1747915836205,-1070.16,0.00032876,5]
[361973160,1747915836215,-420.0,0.00032876,5]
[361973162,1747915836226,-420.0,0.00032876,5]
[361973164,1747915836235,-420.0,0.00032876,5]
[361973166,1747915836244,-922.79,0.00032876,5]
[361973168,1747915836255,-314.26664822,0.00032876,5]
[361973170,1747915836265,-253.24406857,0.00032876,5]
[361973172,1747915836275,-420.0,0.00032876,5]
[361973174,1747915836285,-730.04,0.00032876,5]
[361973176,1747915836296,-424.6,0.00032876,5]
[361973178,1747915836306,-970.52,0.00032876,5]
[361973180,1747915836315,-965.5,0.00032876,5]
[361973182,1747915836325,-420.0,0.00032876,5]
[361973184,1747915836334,-420.0,0.00032876,5]
[361973186,1747915836344,-657.98,0.00032876,5]
[361973188,1747915836353,-770.55,0.00032876,5]
[361973190,1747915836363,-1238.36,0.00032876,5]
[361973192,1747915836372,-598.97,0.00032876,5]
[361973194,1747915836382,-420.0,0.00032876,5]
[361973196,1747915836391,-964.52,0.00032876,5]
[361973198,1747915836402,-420.0,0.00032876,5]
[361973200,1747915836411,-815.94,0.00032876,5]
[361973202,1747915836420,-420.0,0.00032876,5]
[361973204,1747915836430,-1131.2,0.00032876,5]
[361973206,1747915836440,-776.57,0.00032876,5]
[361973208,1747915836450,-420.0,0.00032876,5]
[361973210,1747915836459,-544.26,0.00032876,5]
[361973212,1747915836469,-420.0,0.00032876,5]
[361973213,1747915836479,-441.6437526,0.00032876,5]
[361973215,1747915836488,-794.37,0.00032876,5]
[361973217,1747915836497,-857.83,0.00032876,5]
[361973219,1747915836507,-261.43,0.00032876,5]
[361973221,1747915836517,-420.0,0.00032876,5]
[361973223,1747915836527,-1029.11,0.00032876,5]
[361973225,1747915836537,-420.0,0.00032876,5]
[361973227,1747915836546,-541.85,0.00032876,5]
[361973229,1747915836556,-500.0,0.00032876,30]
[361973231,1747915836565,-420.0,0.00032876,5]
[361973233,1747915836573,-774.93,0.00032876,5]
[361973235,1747915836583,-420.0,0.00032876,5]
[361973237,1747915836593,-823.0,0.00032876,5]
[361973239,1747915836602,-1074.82,0.00032876,5]
[361973241,1747915836612,-805.03,0.00032876,5]
[361973243,1747915836622,-665.44,0.00032876,5]
[361973245,1747915836631,-694.75,0.00032876,5]
[361973247,1747915836641,-2023.62,0.00032876,5]
[361973249,1747915836651,-565.48,0.00032876,5]
[361973251,1747915836661,-420.0,0.00032876,5]
[361973253,1747915836670,-420.0,0.00032876,5]
[361973255,1747915836679,-500.56,0.00032876,5]
[361973257,1747915836689,-455.19,0.00032876,5]
[361973259,1747915836700,-420.0,0.00032876,5]
[361973261,1747915836710,-420.0,0.00032876,5]
[361973263,1747915836722,-817.28,0.00032876,5]
[361973265,1747915836731,-529.56714005,0.00032876,5]
[361973267,1747915836741,-420.0,0.00032876,5]
[361973269,1747915836751,-420.0,0.00032876,5]
[361973271,1747915836761,-500.02,0.00032876,5]
[361973273,1747915836771,-1017.68,0.00032876,5]
[361973275,1747915836781,-577.24,0.00032876,5]
[361973277,1747915836793,-460.25,0.00032876,5]
[361973279,1747915836804,-1320.96,0.00032876,5]
[361973281,1747915836814,-326.38398406,0.00032876,5]
[361973283,1747915836823,-420.0,0.00032876,5]
[361973285,1747915836833,-420.0,0.00032876,5]
[361973287,1747915836842,-784.63,0.00032876,5]
[361973289,1747915836853,-420.0,0.00032876,5]
[361973291,1747915836862,-420.0,0.00032876,5]
[361973293,1747915836872,-1092.96,0.00032876,5]
[361973295,1747915836883,-523.82,0.00032876,5]
[361973297,1747915836893,-420.0,0.00032876,5]
[361973299,1747915836903,-420.0,0.00032876,5]
[361973301,1747915836914,-420.0,0.00032876,5]
[361973303,1747915836923,-420.0,0.00032876,5]
[361973305,1747915836933,-604.27,0.00032876,5]
[361973307,1747915836942,-420.0,0.00032876,5]
[361973309,1747915836951,-785.26,0.00032876,5]
[361973311,1747915836961,-852.96,0.00032876,5]
[361973313,1747915836972,-420.0,0.00032876,5]
[361973315,1747915836982,-420.0,0.00032876,5]
[361973317,1747915836991,-1138.7,0.00032876,5]
[361973319,1747915837002,-1553.21,0.00032876,5]
[361973320,1747915837012,-420.0,0.00032876,5]
[361973322,1747915837021,-420.0,0.00032876,5]
[361973324,1747915837034,-420.0,0.00032876,10]
[361973326,1747915837043,-420.0,0.00032876,5]
[361973328,1747915837052,-952.5,0.00032876,5]
[361973330,1747915837063,-691.6,0.00032876,5]
[361973332,1747915837073,-560.72658409,0.00032876,5]
[361973334,1747915837082,-420.0,0.00032876,5]
[361973336,1747915837092,-483.86,0.00032876,5]
[361973338,1747915837102,-198.14950807,0.00032876,5]
[361973340,1747915837111,-1169.26,0.00032876,5]
[361973342,1747915837122,-605.48,0.00032876,5]
[361973344,1747915837131,-1783.11,0.00032876,5]
[361973346,1747915837141,-420.0,0.00032876,5]
[361973348,1747915837151,-817.5,0.00032876,5]
[361973350,1747915837160,-420.0,0.00032876,5]
[361973352,1747915837169,-420.0,0.00032876,5]
[361973355,1747915837183,-420.0,0.00032876,5]
[361973357,1747915837193,-420.0,0.00032876,5]
[361973359,1747915837203,-982.96,0.00032876,5]
[361973361,1747915837213,-937.08,0.00032876,5]
[361973363,1747915837224,-904.99,0.00032876,5]
[361973365,1747915837233,-1089.07,0.00032876,5]
[361973367,1747915837243,-1986.65,0.00032876,5]
[361973369,1747915837253,-420.0,0.00032876,5]
[361973371,1747915837262,-420.0,0.00032876,5]
[361973373,1747915837271,-487.25,0.00032876,5]
[361973375,1747915837281,-420.0,0.00032876,5]
[361973377,1747915837292,-913.62,0.00032876,5]
[361973379,1747915837301,-758.01,0.00032876,5]
[361973381,1747915837311,-693.26,0.00032876,5]
[361973383,1747915837321,-736.41,0.00032876,5]
[361973385,1747915837331,-420.0,0.00032876,5]
[361973387,1747915837341,-452.36,0.00032876,5]
[361973389,1747915837351,-420.0,0.00032876,5]
[361973391,1747915837360,-581.73,0.00032876,5]
[361973393,1747915837369,-420.0,0.00032876,5]
[361973395,1747915837378,-420.0,0.00032876,5]
[361973397,1747915837388,-420.0,0.00032876,5]
[361973398,1747915837398,-420.0,0.00032876,5]
[361973400,1747915837408,-420.0,0.00032876,5]
[361973401,1747915837418,-420.0,0.00032876,5]
[361973402,1747915837428,-420.0,0.00032876,5]
[361973403,1747915837438,-420.0,0.00032876,5]
[361973404,1747915837447,-420.0,0.00032876,5]
[361973405,1747915837457,-844.97,0.00032876,5]
[361973406,1747915837467,-420.0,0.00032876,5]
[361973407,1747915837477,-420.0,0.00032876,5]
[361973408,1747915837487,-420.0,0.00032876,5]
[361973409,1747915837496,-420.0,0.00032876,5]
[361973410,1747915837506,-2355.54,0.00032876,5]
[361973412,1747915837516,-1344.75,0.00032876,5]
[361973413,1747915837525,-420.0,0.00032876,5]
[361973416,1747915837537,-420.0,0.00032876,5]
[361973417,1747915837547,-420.0,0.00032876,5]
[361973419,1747915837556,-886.64,0.00032876,5]
[361973421,1747915837566,-420.0,0.00032876,5]
[361973423,1747915837575,-420.0,0.00032876,5]
[361973425,1747915837585,-420.0,0.00032876,5]
[361973427,1747915837594,-420.0,0.00032876,5]
[361973429,1747915837604,-1149.77,0.00032876,5]
[361973431,1747915837613,-499.86,0.00032876,5]
[361973433,1747915837623,-420.0,0.00032876,5]
[361973435,1747915837632,-638.15,0.00032876,5]
[361973437,1747915837642,-508.46,0.00032876,5]
[361973439,1747915837652,-825.1,0.00032876,5]
[361973441,1747915837662,-420.0,0.00032876,5]
[361973443,1747915837672,-420.0,0.00032876,5]
[361973445,1747915837682,-897.75,0.00032876,5]
[361973447,1747915837691,-420.0,0.00032876,5]
[361973449,1747915837703,-1237.18,0.00032876,5]
[361973451,1747915837713,-420.0,0.00032876,5]
[361973453,1747915837722,-439.76,0.00032876,5]
[361973455,1747915837732,-420.0,0.00032876,5]
[361973458,1747915837741,-420.0,0.00032876,5]
[361973461,1747915837751,-420.0,0.00032876,5]
[361973464,1747915837760,-420.0,0.00032876,5]
[361973467,1747915837770,-420.0,0.00032876,5]
[361973470,1747915837783,-543.23,0.00032876,5]
[361973473,1747915837794,-708.1,0.00032876,5]
[361973476,1747915837803,-420.0,0.00032876,5]
[361973479,1747915837813,-690.39,0.00032876,5]
[361973482,1747915837823,-420.0,0.00032876,5]
[361973485,1747915837832,-420.0,0.00032876,5]
[361973488,1747915837842,-549.37,0.00032876,5]
[361973493,1747915837852,-386.61575328,0.00032876,5]
[361973496,1747915837862,-420.0,0.00032876,5]
[361973500,1747915837873,-420.0,0.00032876,5]
[361973504,1747915837882,-994.35,0.00032876,5]
[361973507,1747915837891,-807.26,0.00032876,5]
[361973510,1747915837901,-420.0,0.00032876,5]
[361973513,1747915837910,-420.0,0.00032876,5]
[361973516,1747915837920,-420.0,0.00032876,5]
[361973519,1747915837929,-420.0,0.00032876,5]
[361973521,1747915837939,-564.34,0.00032876,5]
[361973524,1747915837949,-479.96,0.00032876,5]
[361973527,1747915837959,-420.0,0.00032876,5]
[361973529,1747915837968,-420.0,0.00032876,5]
[361973531,1747915837977,-565.39,0.00032876,5]
[361973533,1747915837986,-434.44,0.00032876,5]
[361973535,1747915837996,-769.79,0.00032876,5]
[361973537,1747915838006,-420.0,0.00032876,5]
[361973539,1747915838016,-772.6,0.00032876,5]
[361973541,1747915838025,-420.0,0.00032876,5]
[361973543,1747915838037,-420.0,0.00032876,5]
[361973545,1747915838046,-420.0,0.00032876,5]
[361973546,1747915838056,-531.03,0.00032876,5]
[361973548,1747915838066,-822.21,0.00032876,5]
[361973550,1747915838076,-612.69,0.00032876,5]
[361973552,1747915838085,-630.17,0.00032876,5]
[361973554,1747915838095,-1036.02,0.00032876,5]
[361973556,1747915838105,-610.94,0.00032876,5]
[361973558,1747915838115,-562.56807458,0.00032876,5]
[361973560,1747915838126,-420.79,0.00032876,5]
[361973562,1747915838136,-948.6,0.00032876,5]
[361973564,1747915838146,-508.36,0.00032876,5]
[361973567,1747915838158,-538.79,0.00032876,5]
[361973568,1747915838168,-285.38541969,0.00032876,5]
[361973571,1747915838178,-430.39,0.00032876,5]
[361973572,1747915838188,-420.0,0.00032876,5]
[361973574,1747915838198,-420.0,0.00032876,5]
[361973576,1747915838207,-511.96,0.00032876,5]
[361973578,1747915838217,-420.0,0.00032876,5]
[361973580,1747915838227,-656.86,0.00032876,5]
[361973582,1747915838237,-536.47,0.00032876,5]
[361973584,1747915838246,-420.0,0.00032876,5]
[361973586,1747915838256,-2000.0,0.00032876,5]
[361973588,1747915838265,-420.0,0.00032876,5]
[361973590,1747915838275,-420.0,0.00032876,5]
[361973592,1747915838285,-777.18,0.00032876,5]
[361973594,1747915838295,-1062.19,0.00032876,5]
[361973596,1747915838303,-420.0,0.00032876,5]
[361973598,1747915838312,-420.0,0.00032876,5]
[361973600,1747915838322,-420.0,0.00032876,5]
[361973602,1747915838332,-425.72,0.00032876,5]
[361973604,1747915838347,-1773.87,0.00032876,5]
[361973606,1747915838359,-420.0,0.00032876,5]
[361973609,1747915838369,-733.6,0.00032876,5]
[361973611,1747915838379,-420.0,0.00032876,5]
[361973613,1747915838389,-865.47,0.00032876,5]
[361973615,1747915838400,-420.0,0.00032876,5]
[361973617,1747915838412,-420.0,0.00032876,5]
[361973619,1747915838426,-420.0,0.00032876,5]
[361973621,1747915838435,-429.79,0.00032876,5]
[361973623,1747915838449,-862.71,0.00032876,5]
[361973625,1747915838458,-592.8,0.00032876,5]
[361973627,1747915838468,-2426.68,0.00032876,5]
[361973629,1747915838478,-420.0,0.00032876,5]
[361973631,1747915838487,-420.0,0.00032876,5]
[361973633,1747915838496,-420.0,0.00032876,5]
[361973635,1747915838506,-420.0,0.00032876,5]
[361973637,1747915838515,-420.0,0.00032876,5]
[361973639,1747915838524,-766.67,0.00032876,5]
[361973641,1747915838534,-420.0,0.00032876,5]
[361973643,1747915838544,-420.0,0.00032876,5]
[361973645,1747915838553,-807.17,0.00032876,5]
[361973647,1747915838564,-556.51,0.00032876,5]
[361973649,1747915838573,-798.14,0.00032876,5]
[361973651,1747915838582,-420.0,0.00032876,5]
[361973653,1747915838592,-582.97,0.00032876,5]
[361973655,1747915838602,-420.0,0.00032876,5]
[361973657,1747915838611,-420.0,0.00032876,5]
[361973659,1747915838620,-779.32,0.00032876,5]
[361973661,1747915838630,-574.7,0.00032876,5]
[361973663,1747915838639,-523.69,0.00032876,5]
[361973665,1747915838649,-352.93158648,0.00032876,5]
[361973667,1747915838658,-1017.67,0.00032876,5]
[361973669,1747915838667,-420.0,0.00032876,5]
[361973671,1747915838676,-420.0,0.00032876,5]
[361973673,1747915838686,-1304.54,0.00032876,5]
[361973675,1747915838696,-420.0,0.00032876,5]
[361973677,1747915838706,-420.0,0.00032876,5]
[361973679,1747915838717,-420.0,0.00032876,5]
[361973680,1747915838727,-420.0,0.00032876,5]
[361973682,1747915838736,-654.85,0.00032876,5]
[361973685,1747915838746,-420.0,0.00032876,5]
[361973687,1747915838757,-420.0,0.00032876,5]
[361973689,1747915838767,-887.37,0.00032876,5]
[361973690,1747915838776,-1324.34,0.00032876,5]
[361973692,1747915838788,-708.78,0.00032876,5]
[361973694,1747915838799,-420.0,0.00032876,5]
[361973697,1747915838809,-663.26,0.00032876,5]
[361973698,1747915838818,-421.91,0.00032876,5]
[361973700,1747915838828,-1182.46,0.00032876,5]
[361973703,1747915838840,-434.1,0.00032876,5]
[361973705,1747915838850,-420.0,0.00032876,5]
[361973707,1747915838859,-420.0,0.00032876,5]
[361973709,1747915838869,-420.0,0.00032876,5]
[361973710,1747915838878,-420.0,0.00032876,5]
[361973712,1747915838888,-681.13,0.00032876,5]
[361973715,1747915838899,-420.0,0.00032876,5]
[361973717,1747915838908,-420.0,0.00032876,5]
[361973719,1747915838918,-547.95,0.00032876,5]
[361973721,1747915838928,-470.3,0.00032876,5]
[361973723,1747915838938,-480.3,0.00032876,5]
[361973725,1747915838948,-762.29,0.00032876,5]
[361973726,1747915838957,-420.0,0.00032876,5]
[361973729,1747915838967,-1016.78,0.00032876,5]
[361973731,1747915838979,-420.0,0.00032876,5]
[361973733,1747915838989,-1166.03,0.00032876,5]
[361973735,1747915838999,-715.08,0.00032876,5]
[361973737,1747915839008,-420.0,0.00032876,5]
[361973739,1747915839017,-420.0,0.00032876,5]
[361973741,1747915839027,-1422.25,0.00032876,5]
[361973743,1747915839038,-420.0,0.00032876,5]
[361973745,1747915839047,-420.0,0.00032876,5]
[361973747,1747915839057,-420.0,0.00032876,5]
[361973749,1747915839067,-982.39,0.00032876,5]
[361973751,1747915839076,-420.0,0.00032876,5]
[361973753,1747915839086,-420.0,0.00032876,5]
[361973755,1747915839095,-420.0,0.00032876,5]
[361973757,1747915839105,-420.0,0.00032876,5]
[361973759,1747915839115,-1139.56,0.00032876,5]
[361973761,1747915839124,-420.0,0.00032876,5]
[361973763,1747915839134,-420.0,0.00032876,5]
[361973765,1747915839143,-420.0,0.00032876,5]
[361973767,1747915839153,-420.0,0.00032876,5]
[361973768,1747915839162,-831.17,0.00032876,5]
[361973771,1747915839172,-1291.09,0.00032876,5]
[361973773,1747915839182,-420.0,0.00032876,5]
[361973774,1747915839192,-420.0,0.00032876,5]
[361973776,1747915839201,-420.0,0.00032876,5]
[361973778,1747915839211,-2831.06,0.00032876,5]
[361973780,1747915839221,-300.0,0.00032876,5]
[361973782,1747915839230,-420.0,0.00032876,5]
[361973784,1747915839240,-420.0,0.00032876,5]
[361973786,1747915839250,-420.0,0.00032876,5]
[361973789,1747915839260,-623.17,0.00032876,5]
[361973790,1747915839269,-420.0,0.00032876,5]
[361973793,1747915839279,-802.64,0.00032876,5]
[361973795,1747915839291,-420.0,0.00032876,5]
[361973797,1747915839301,-420.0,0.00032876,5]
[361973799,1747915839311,-1118.09,0.00032876,5]
[361973801,1747915839320,-420.0,0.00032876,5]
[361973803,1747915839330,-420.0,0.00032876,5]
[361973805,1747915839339,-553.41,0.00032876,5]
[361973806,1747915839349,-1138.88,0.00032876,5]
[361973809,1747915839358,-979.93,0.00032876,5]
[361973831,1747915839570,-614.35,0.00032876,5]
[361973832,1747915839580,-781.8,0.00032876,5]
[361973833,1747915839590,-420.0,0.00032876,5]
[361973834,1747915839600,-420.0,0.00032876,5]
[361973835,1747915839610,-420.0,0.00032876,5]
[361973836,1747915839624,-772.47,0.00032876,5]
[361973837,1747915839634,-516.22,0.00032876,5]
[361973838,1747915839644,-318.63,0.00032876,5]
[361973839,1747915839654,-1265.2,0.00032876,5]
[361973840,1747915839664,-1321.29,0.00032876,5]
[361973841,1747915839675,-420.0,0.00032876,5]
[361973843,1747915839685,-420.0,0.00032876,5]
[361973845,1747915839695,-1497.63,0.00032876,5]
[361973847,1747915839705,-420.0,0.00032876,5]
[361973849,1747915839718,-420.0,0.00032876,5]
[361973851,1747915839728,-1000.0,0.00032876,5]
[361973853,1747915839738,-420.0,0.00032876,5]
[361973856,1747915839748,-1249.67,0.00032876,5]
[361973860,1747915839759,-420.0,0.00032876,5]
[361973863,1747915839768,-1305.59,0.00032876,5]
[361973866,1747915839778,-420.0,0.00032876,5]
[361973869,1747915839791,-420.0,0.00032876,5]
[361973872,1747915839801,-778.45,0.00032876,5]
[361973875,1747915839811,-420.0,0.00032876,5]
[361973878,1747915839822,-420.0,0.00032876,5]
[361973881,1747915839832,-651.35,0.00032876,5]
[361973884,1747915839842,-420.0,0.00032876,5]
[361973887,1747915839851,-1522.02,0.00032876,5]
[361973889,1747915839861,-420.0,0.00032876,5]
[361973891,1747915839871,-844.08,0.00032876,5]
[361973893,1747915839881,-420.0,0.00032876,5]
[361973896,1747915839892,-420.0,0.00032876,5]
[361973899,1747915839902,-420.0,0.00032876,5]
[361973902,1747915839912,-420.0,0.00032876,5]
[361973905,1747915839921,-420.0,0.00032876,5]
[361973908,1747915839931,-420.0,0.00032876,5]
[361973911,1747915839941,-420.0,0.00032876,5]
[361973914,1747915839952,-420.0,0.00032876,5]
[361973917,1747915839962,-1302.68,0.00032876,5]
[361973920,1747915839972,-4317.9,0.00032876,5]
[361973923,1747915839983,-420.0,0.00032876,5]
[361973926,1747915839994,-555.49,0.00032876,5]
[361973929,1747915840004,-1281.69,0.00032876,5]
[361973933,1747915840015,-1052.09,0.00032876,5]